[Event "3rd President Cup-A 2024"]
[Site "Tashkent"]
[Date "2024.11.27"]
[Round "7.22"]
[White "Vaibhav Jayant Raut"]
[Black "Nitish Belurkar"]
[Result "0-1"]
[ECO "A27"]
[WhiteElo "2304"]
[BlackElo "2434"]
[Annotator "TA"]
[PlyCount "60"]
[EventDate "2024.11.22"]
[EventType "swiss"]
[EventCountry "UZB"]
[SourceTitle "playchess.com"]
[Source "ChessBase"]
[SourceQuality "1"]
[TimeControl "5400+30"]

{[%evp 9,60,0,0,0,0,0,4,0,0,0,0,0,0,0,0,-15,0,-68,-47,-65,-62,-52,-16,-3,-7,-60,-7,-53,-50,-59,-67,-87,-80,-71,-67,-90,-94,-175,-175,-400,-395,-613,-614,-563,-502,-985,-984,-843,-845,-683,-679,-1364,-672]} 1. c4 {[%emt 0:00:21]} e5 {[%emt 0:00:06][%cal Be7e5,Be5e4][%mdl 32]} 2. Nc3 {[%emt 0:00:07]} Nc6 {[%emt 0:00:04]} 3. Nf3 {[%emt 0:00:07]} f5 {[%emt 0:00:08]} 4. d4 {[%emt 0:01:29]} e4 {[%emt 0:00:06]} 5. Ng5 {[%emt 0:00:05]} Bb4 {[%emt 0:00:08]} 6. Nh3 {[%emt 0:02:38]} Bxc3+ {[%emt 0:00:42]} 7. bxc3 {[%emt 0:01:25]} d6 {[%emt 0:00:02]} 8. Nf4 {[%emt 0:09:06] The position is equal.} Nf6 {[%emt 0:00:06]} 9. e3 {[%emt 0:00:41]} Qd7 {[%emt 0:00:17]} 10. c5 {[%emt 0:08:12]} dxc5 {[%emt 0:13:16]} 11. Ba3 {[%emt 0:04:52]} b6 {[%emt 0:10:26]} 12. dxc5 {[%emt 0:13:50] [#] Black must now prevent Qa4.} g5 {[%emt 0:05:28]} 13. Ne2 {[%emt 0:03:51]} (13. Qa4 $11 Na5 (13... gxf4 14. Rd1 $11) 14. c6 (14. Bb5 $2 c6 $17)) 13... Ba6 $15 {[%emt 0:02:59] Black is more active.} 14. Qxd7+ {[%emt 0:04:44]} Nxd7 {[%emt 0:00:08]} 15. Nd4 {[%emt 0:08:36]} Nxd4 {[%emt 0:00:34]} 16. cxd4 {[%emt 0:00:18]} Bxf1 {[%emt 0:00:07]} 17. Kxf1 {[%emt 0:00:47]} ({White should try} 17. Rxf1 $11 Kf7 18. Kd2) 17... bxc5 {[%emt 0:15:14]} (17... Nf6 $15) 18. dxc5 {[%emt 0:00:05]} (18. Rc1 $11) 18... O-O-O {[%emt 0:00:32]} 19. h4 {[%emt 0:07:31]} g4 {[%emt 0:00:23]} 20. Bb2 {[%emt 0:09:49] aiming for c6.} Rhe8 {[%emt 0:00:43]} 21. Bd4 {[%emt 0:04:32]} Ne5 {[%emt 0:01:06]} 22. Ke2 {[%emt 0:02:05]} Nd3 {[%emt 0:09:13]} 23. f3 {[%emt 0:03:06] [#]} (23. g3 $17) 23... Nf4+ $1 $19 {[%emt 0:03:19]} 24. Kf2 $2 {[%emt 0:00:36]} (24. exf4 $2 exf3+ (24... Rxd4 25. fxg4 fxg4 26. f5 $11) 25. Kf1 (25. Kd3 $2 fxg2 26. Rhc1 g1=Q $19) 25... Rxd4 $19) (24. Kf1 g3 (24... gxf3 25. gxf3 Nd3 26. Ke2 $15) 25. Rg1 (25. Bf6 $2 exf3 26. exf4 Rd2 $19)) 24... Rxd4 {[%emt 0:00:52]} 25. exd4 {[%emt 0:05:16][%mdl 4096] Endgame. KRR-KRN} (25. exf4 $142 Rd2+ 26. Ke1 Rxg2 (26... exf3+ $2 {perishes.} 27. Kxd2 fxg2 28. Rhe1 $18) 27. fxg4) 25... e3+ {[%emt 0:00:08] Black is clearly winning.} 26. Kg1 {[%emt 0:08:32]} g3 {[%emt 0:01:01]} 27. Re1 {[%emt 0:00:46]} (27. Kf1 $142 e2+ 28. Ke1 Nxg2+ 29. Kd2 e1=Q+ (29... e1=B+ $2 30. Kd3 $19) 30. Rhxe1 Nxe1 (30... Rxe1 $2 31. Rxe1 Nxe1 32. Kxe1 $19) 31. Rxe1 Rxe1 32. Kxe1) 27... e2 {[%emt 0:00:32] ( -> ...Nd3)} 28. Rh3 {[%emt 0:00:05]} Nh5 {[%emt 0:01:38]} 29. f4 {[%emt 0:00:49]} Re3 {[%emt 0:00:15]} (29... Nxf4 $2 {too greedy.} 30. Rxg3 Re4 31. d5 $18) 30. d5 {[%emt 0:00:31]} Rd3 {[%emt 0:01:37] Weighted Error Value: White=0.60/Black=0.09 (flawless) .  Mistake:       	White=6     	Black=1      Inaccurate:     	---       	Black=1      OK:         	White=4     	Black=13     Best:        	White=2     	Black=2      Strong:       	---       	Black=1} (30... Nxf4 $142 31. Rxg3 Rxg3) 0-1

[Event "3rd President Cup-A 2024"]
[Site "Tashkent"]
[Date "2024.11.27"]
[Round "7.23"]
[White "Goganov, Aleksey"]
[Black "Nurman, Alua"]
[Result "1-0"]
[ECO "C54"]
[WhiteElo "2465"]
[BlackElo "2330"]
[Annotator "RC"]
[PlyCount "177"]
[EventDate "2024.11.22"]
[EventType "swiss"]
[EventCountry "UZB"]
[SourceTitle "playchess.com"]
[Source "ChessBase"]
[SourceQuality "1"]
[TimeControl "5400+30"]

1. e4 {[%emt 0:00:05]} e5 {[%emt 0:00:33]} 2. Nf3 {[%emt 0:00:06]} Nc6 {[%emt 0:00:03]} 3. Bc4 {[%emt 0:00:10]} Bc5 {[%emt 0:00:17]} 4. O-O {[%emt 0:00:08]} Nf6 {[%emt 0:00:20]} 5. d3 {[%emt 0:00:08]} d6 {[%emt 0:00:14]} 6. c3 {[%emt 0:00:19]} a6 {[%emt 0:00:16]} 7. a4 {[%emt 0:00:09]} h6 {[%emt 0:01:08]} 8. Re1 {[%emt 0:04:37]} O-O {[%emt 0:01:28]} 9. h3 {[%emt 0:00:06]} Ba7 {[%emt 0:01:01]} 10. Nbd2 {[%emt 0:01:16]} Be6 {[%emt 0:00:59]} 11. Bxe6 {[%emt 0:00:34]} fxe6 {[%emt 0:00:03]} 12. b4 {[%emt 0:02:18]} Ne7 {[%emt 0:16:39]} 13. Nf1 {[%emt 0:04:50]} Ng6 {[%emt 0:00:56]} 14. Ng3 {[%emt 0:00:52]} Qd7 {[%emt 0:02:57]} 15. d4 {[%emt 0:00:42]} exd4 {[%emt 0:08:28]} 16. cxd4 {[%emt 0:00:06]} Rae8 {[%emt 0:00:17]} 17. Be3 {[%emt 0:06:04]} Nh7 {[%emt 0:05:21]} 18. d5 {[%emt 0:16:25]} Bxe3 {[%emt 0:02:25]} 19. Rxe3 {[%emt 0:00:06]} Nf4 {[%emt 0:01:42]} 20. dxe6 {[%emt 0:00:40]} Rxe6 {[%emt 0:02:08]} 21. Rc1 {[%emt 0:00:55]} Qf7 {[%emt 0:03:49]} 22. Qb3 {[%emt 0:06:52]} Re7 {[%emt 0:06:53]} 23. Nf5 {[%emt 0:04:01]} Rd7 {[%emt 0:04:47]} 24. Qb2 {[%emt 0:03:09]} Nf6 {[%emt 0:07:52]} 25. N3d4 {[%emt 0:02:11]} Kh7 {[%emt 0:00:29]} 26. Rf3 {[%emt 0:00:52]} Ne6 {[%emt 0:03:20]} 27. Qc2 {[%emt 0:07:21]} Nxd4 {[%emt 0:00:46]} 28. Nxd4 {[%emt 0:00:03]} Kh8 {[%emt 0:00:10]} 29. Nf5 {[%emt 0:01:23]} Qe6 {[%emt 0:05:27]} 30. Re1 {[%emt 0:01:37]} Re8 {[%emt 0:01:09]} 31. Rfe3 {[%emt 0:03:39]} Qf7 {[%emt 0:03:45]} 32. Rg3 {[%emt 0:02:42]} Nh5 {[%emt 0:01:46]} 33. Rf3 {[%emt 0:00:25]} Qe6 {[%emt 0:00:58]} 34. Nd4 {[%emt 0:06:28]} Qg6 {[%emt 0:00:37]} 35. Rf5 {[%emt 0:00:42]} Rde7 {[%emt 0:02:39]} 36. Re3 {[%emt 0:03:28]} Nf6 {[%emt 0:01:41]} 37. Rg3 {[%emt 0:04:43]} Qh7 {[%emt 0:00:04]} 38. f3 {[%emt 0:00:49]} c6 {[%emt 0:00:28]} 39. Ne2 {[%emt 0:04:54]} Nd5 {[%emt 0:03:17]} 40. Qd2 {[%emt 0:00:11]} Ne3 {[%emt 0:04:09]} 41. Rh5 {[%emt 0:00:22]} Nc4 {[%emt 0:00:05]} 42. Qd4 {[%emt 0:00:11]} b5 {[%emt 0:00:23]} 43. Nf4 {[%emt 0:01:05]} Kg8 {[%emt 0:03:21]} 44. Rg6 {[%emt 0:06:42]} Rf7 {[%emt 0:00:43]} 45. Rf5 {[%emt 0:01:42]} Ne5 {[%emt 0:04:10]} 46. Rxf7 {[%emt 0:00:24]} Nxg6 {[%emt 0:00:20]} 47. Qa7 {[%emt 0:00:26]} Nxf4 {[%emt 0:00:37]} 48. Rxf4 {[%emt 0:00:04]} g5 {[%emt 0:00:29]} 49. Qxh7+ {[%emt 0:00:25]} Kxh7 {[%emt 0:00:01]} 50. Rf7+ {[%emt 0:00:06]} Kg6 {[%emt 0:00:03]} 51. Ra7 {[%emt 0:00:11]} bxa4 {[%emt 0:00:18]} 52. Rxa6 {[%emt 0:00:03]} Rc8 {[%emt 0:01:17]} 53. Rxa4 {[%emt 0:00:18]} Kf6 {[%emt 0:00:15]} 54. Kf2 {[%emt 0:00:35]} Ke5 {[%emt 0:00:17]} 55. Ke3 {[%emt 0:00:04]} d5 {[%emt 0:01:50]} 56. Ra6 {[%emt 0:04:52]} dxe4 {[%emt 0:01:43]} 57. Ra5+ {[%emt 0:00:03]} Kd6 {[%emt 0:00:21]} 58. Kxe4 {[%emt 0:00:24]} Rb8 {[%emt 0:00:11]} 59. Ra4 {[%emt 0:01:23]} Rb5 {[%emt 0:00:05]} 60. Kd3 {[%emt 0:00:16]} Rd5+ {[%emt 0:01:58]} 61. Kc3 {[%emt 0:00:09]} Rd1 {[%emt 0:00:10]} 62. Ra2 {[%emt 0:01:22]} Rg1 {[%emt 0:00:16]} 63. Re2 {[%emt 0:01:04]} Kd5 {[%emt 0:00:12]} 64. Kd3 {[%emt 0:00:49]} Rd1+ {[%emt 0:01:13]} 65. Ke3 {[%emt 0:00:28]} Rb1 {[%emt 0:00:31]} 66. Rd2+ {[%emt 0:00:05]} Ke5 {[%emt 0:00:33]} 67. Rc2 {[%emt 0:00:05]} Rb3+ {[%emt 0:00:30]} 68. Kf2 {[%emt 0:00:05]} Rxb4 {[%emt 0:00:40]} 69. Rxc6 {[%emt 0:00:05]} h5 {[%emt 0:00:04]} 70. Rc8 {[%emt 0:00:47]} Rb2+ {[%emt 0:00:28]} 71. Kg3 {[%emt 0:00:04]} h4+ {[%emt 0:00:03]} 72. Kh2 {[%emt 0:00:04]} Kf5 {[%emt 0:01:19]} 73. Rc4 {[%emt 0:00:04]} Ra2 {[%emt 0:00:26]} 74. Rg4 {[%emt 0:00:04]} Ra1 {[%emt 0:00:40]} 75. f4 {[%emt 0:00:08]} gxf4 {[%emt 0:00:04]} 76. Rxh4 {[%emt 0:00:02]} Ra2 {[%emt 0:00:08]} 77. Rh8 {[%emt 0:00:09]} Ra1 {[%emt 0:01:02]} 78. Rh5+ {[%emt 0:00:11]} Kg6 {[%emt 0:00:18]} 79. Rb5 {[%emt 0:00:13]} Rf1 {[%emt 0:00:29]} 80. h4 {[%emt 0:00:21]} Kh6 {[%emt 0:00:49]} 81. Kh3 {[%emt 0:01:14]} f3 {[%emt 0:00:35]} 82. g4 {[%emt 0:01:13]} f2 {[%emt 0:00:26]} 83. Rh5+ {[%emt 0:00:12]} Kg6 {[%emt 0:00:00]} 84. Rg5+ {[%emt 0:00:07]} Kh6 {[%emt 0:01:14]} 85. Kg2 {[%emt 0:00:15]} Rh1 {[%emt 0:00:22]} 86. Rh5+ {[%emt 0:00:07]} Kg6 {[%emt 0:00:24]} 87. Kxf2 {[%emt 0:00:06]} Rh3 {[%emt 0:00:43]} 88. Kg2 {[%emt 0:00:06]} Ra3 {[%emt 0:00:02]} 89. Rf5 {[%emt 0:00:06]} 1-0